[Event "*** SCC Grand Prix: Titled Tuesday Blitz"]
[Site "Chess.com"]
[Date "2020.08.04"]
[Round "10"]
[White "RaphCamora"]
[Black "Zarikovs1999"]
[Result "0-1"]
[WhiteElo "2443"]
[BlackElo "2402"]
[TimeControl "180+1"]
[EndTime "15:39:12 PDT"]
[Termination "Zarikovs1999 won by resignation"]

1. e4 {[%clk 0:03:00.9]} 1... c5 {[%clk 0:02:59.7]} 2. Nf3 {[%clk 0:02:59.2]}
2... Nc6 {[%clk 0:03:00.2]} 3. d4 {[%clk 0:02:58.3]} 3... cxd4 {[%clk
0:03:01.1]} 4. Nxd4 {[%clk 0:02:58.8]} 4... Nf6 {[%clk 0:03:02]} 5. Nc3 {[%clk
0:02:58.9]} 5... d6 {[%clk 0:03:02.5]} 6. Bg5 {[%clk 0:02:57]} 6... e6 {[%clk
0:03:02.5]} 7. Qd2 {[%clk 0:02:57.3]} 7... Be7 {[%clk 0:03:01.9]} 8. O-O-O
{[%clk 0:02:57]} 8... a6 {[%clk 0:03:02.5]} 9. Kb1 {[%clk 0:02:41.5]} 9... Bd7
{[%clk 0:03:00.1]} 10. f4 {[%clk 0:02:39.8]} 10... b5 {[%clk 0:02:24.3]} 11.
Bxf6 {[%clk 0:02:31.8]} 11... gxf6 {[%clk 0:02:25.2]} 12. Nf3 {[%clk 0:02:30.8]}
12... Qb6 {[%clk 0:02:17.1]} 13. f5 {[%clk 0:02:30.3]} 13... O-O-O {[%clk
0:02:11.7]} 14. g3 {[%clk 0:02:28.1]} 14... Kb8 {[%clk 0:02:04.8]} 15. fxe6
{[%clk 0:02:25.3]} 15... fxe6 {[%clk 0:02:02.7]} 16. Bh3 {[%clk 0:02:25.6]}
16... Na5 {[%clk 0:01:52]} 17. Qd4 {[%clk 0:02:04]} 17... Qb7 {[%clk 0:01:46.5]}
18. Qd3 {[%clk 0:01:53.7]} 18... b4 {[%clk 0:01:41.2]} 19. Ne2 {[%clk 0:01:52]}
19... Bb5 {[%clk 0:01:41.7]} 20. Qd2 {[%clk 0:01:45.4]} 20... e5 {[%clk
0:01:39.9]} 21. Nc1 {[%clk 0:01:27.7]} 21... Qxe4 {[%clk 0:01:35.5]} 22. Nh4
{[%clk 0:01:20.2]} 22... Nc4 {[%clk 0:01:29.4]} 23. Qxb4 {[%clk 0:00:58.5]}
23... Ka7 {[%clk 0:01:23.4]} 24. Bg2 {[%clk 0:00:57]} 24... Qg4 {[%clk 0:01:19]}
25. a4 {[%clk 0:00:47.8]} 25... Rb8 {[%clk 0:01:14.7]} 26. Bf3 {[%clk
0:00:21.1]} 26... Qc8 {[%clk 0:01:04]} 27. axb5 {[%clk 0:00:18.9]} 27... Rxb5
{[%clk 0:01:01.2]} 28. Qc3 {[%clk 0:00:16.7]} 28... Nxb2 {[%clk 0:01:00.6]} 29.
Qxb2 {[%clk 0:00:17.3]} 29... Rxb2+ {[%clk 0:00:52.2]} 30. Kxb2 {[%clk
0:00:18.2]} 30... f5 {[%clk 0:00:53.1]} 31. Bd5 {[%clk 0:00:16.4]} 31... Bxh4
{[%clk 0:00:45.7]} 32. gxh4 {[%clk 0:00:17.3]} 32... Qc5 {[%clk 0:00:46.1]} 33.
Nb3 {[%clk 0:00:17.9]} 33... Qb6 {[%clk 0:00:41.9]} 34. Ra1 {[%clk 0:00:16.3]}
34... Rb8 {[%clk 0:00:39.1]} 35. Ra3 {[%clk 0:00:15.5]} 35... Qd4+ {[%clk
0:00:38.8]} 36. Ka2 {[%clk 0:00:11.3]} 36... Qxd5 {[%clk 0:00:37.7]} 37. Ra1
{[%clk 0:00:12.2]} 37... Rb6 {[%clk 0:00:37.7]} 38. Kb2 {[%clk 0:00:11.8]} 38...
Qd4+ {[%clk 0:00:36.9]} 39. Kb1 {[%clk 0:00:12.2]} 39... Qxh4 {[%clk 0:00:35.9]}
40. Ra4 {[%clk 0:00:10.3]} 40... Qxh2 {[%clk 0:00:35.5]} 41. Rc4 {[%clk
0:00:09.9]} 41... Qh1+ {[%clk 0:00:33.8]} 42. Kb2 {[%clk 0:00:10.1]} 42... Qd5
{[%clk 0:00:33.7]} 43. Rc7+ {[%clk 0:00:10.6]} 43... Rb7 {[%clk 0:00:34.2]} 44.
Rc3 {[%clk 0:00:10.5]} 44... f4 {[%clk 0:00:33.1]} 45. Rd3 {[%clk 0:00:10.8]}
45... Qc6 {[%clk 0:00:27.3]} 46. Ra5 {[%clk 0:00:11.1]} 46... e4 {[%clk
0:00:23.9]} 47. Rd4 {[%clk 0:00:11.2]} 47... Qb6 {[%clk 0:00:20.2]} 48. Rad5
{[%clk 0:00:10]} 48... e3 {[%clk 0:00:19]} 49. Rxf4 {[%clk 0:00:09.6]} 49... e2
{[%clk 0:00:17.1]} 50. Re4 {[%clk 0:00:10.1]} 50... Qf2 {[%clk 0:00:17.2]} 51.
Rxd6 {[%clk 0:00:06.1]} 51... e1=Q {[%clk 0:00:17]} 52. Rxe1 {[%clk 0:00:06.8]}
52... Qxe1 {[%clk 0:00:17.9]} 53. Rd4 {[%clk 0:00:05.2]} 53... Rxb3+ {[%clk
0:00:13.3]} 54. Kxb3 {[%clk 0:00:04.7]} 54... Qe5 {[%clk 0:00:14.2]} 55. Rc4
{[%clk 0:00:04.3]} 55... Qb5+ {[%clk 0:00:13.6]} 56. Kc3 {[%clk 0:00:03.2]}
56... Qxc4+ {[%clk 0:00:12.8]} 57. Kxc4 {[%clk 0:00:04.1]} 57... h5 {[%clk
0:00:13.5]} 58. Kd4 {[%clk 0:00:04.4]} 58... Kb6 {[%clk 0:00:14.4]} 59. Ke4
{[%clk 0:00:04.8]} 59... h4 {[%clk 0:00:14.3]} 60. Kf4 {[%clk 0:00:05.5]} 60...
Kc5 {[%clk 0:00:15.2]} 61. Kg4 {[%clk 0:00:06]} 61... Kc4 {[%clk 0:00:16.1]} 62.
Kxh4 {[%clk 0:00:06.4]} 62... Kc3 {[%clk 0:00:17]} 63. Kg4 {[%clk 0:00:07.1]}
63... a5 {[%clk 0:00:17.9]} 64. Kf4 {[%clk 0:00:07.9]} 64... a4 {[%clk
0:00:18.8]} 65. Ke4 {[%clk 0:00:08.7]} 65... a3 {[%clk 0:00:19.7]} 66. Kd5
{[%clk 0:00:09.4]} 66... a2 {[%clk 0:00:20.6]} 67. Kc5 {[%clk 0:00:10.1]} 67...
a1=Q {[%clk 0:00:20.2]} 68. Kd6 {[%clk 0:00:11]} 68... Kxc2 {[%clk 0:00:20.7]}
69. Ke6 {[%clk 0:00:11.9]} 69... Qd4 {[%clk 0:00:20.7]} 70. Kf5 {[%clk
0:00:12.8]} 70... Kd3 {[%clk 0:00:21.5]} 71. Kg6 {[%clk 0:00:13.5]} 71... Ke3
{[%clk 0:00:22.2]} 72. Kh5 {[%clk 0:00:14]} 72... Qf4 {[%clk 0:00:22]} 73. Kg6
{[%clk 0:00:14.9]} 73... Ke4 {[%clk 0:00:22.4]} 74. Kh7 {[%clk 0:00:15.8]} 74...
Qg5 {[%clk 0:00:22.3]} 75. Kh8 {[%clk 0:00:15.5]} 75... Kf5 {[%clk 0:00:23.2]}
76. Kh7 {[%clk 0:00:14]} 76... Kf6 {[%clk 0:00:24.1]} 0-1

[Event "*** SCC Grand Prix: Titled Tuesday Blitz"]
[Site "Chess.com"]
[Date "2020.08.04"]
[Round "10"]
[White "Steven_Rojas"]
[Black "Jenia84"]
[Result "0-1"]
[WhiteElo "2436"]
[BlackElo "2388"]
[TimeControl "180+1"]
[EndTime "15:39:12 PDT"]
[Termination "Jenia84 won on time"]

1. c4 {[%clk 0:03:00.9]} 1... Nf6 {[%clk 0:02:59.4]} 2. Nc3 {[%clk 0:03:01.2]}
2... e6 {[%clk 0:02:58.7]} 3. e4 {[%clk 0:03:00.7]} 3... d5 {[%clk 0:02:57.1]}
4. e5 {[%clk 0:03:00.7]} 4... Ne4 {[%clk 0:02:56]} 5. d4 {[%clk 0:02:46]} 5...
Nxc3 {[%clk 0:02:55]} 6. bxc3 {[%clk 0:02:45.8]} 6... c5 {[%clk 0:02:55.3]} 7.
Nf3 {[%clk 0:02:35.3]} 7... Nc6 {[%clk 0:02:54.5]} 8. cxd5 {[%clk 0:02:31.7]}
8... Qxd5 {[%clk 0:02:49.6]} 9. Be2 {[%clk 0:02:26.3]} 9... cxd4 {[%clk
0:02:49.3]} 10. cxd4 {[%clk 0:02:26.6]} 10... Bb4+ {[%clk 0:02:48.1]} 11. Bd2
{[%clk 0:02:27]} 11... O-O {[%clk 0:02:28.1]} 12. O-O {[%clk 0:02:25.8]} 12...
Rd8 {[%clk 0:02:24.4]} 13. Bxb4 {[%clk 0:02:21.2]} 13... Nxb4 {[%clk 0:02:23.9]}
14. Qa4 {[%clk 0:02:14.5]} 14... a5 {[%clk 0:02:14.5]} 15. a3 {[%clk 0:02:12]}
15... Bd7 {[%clk 0:02:11.7]} 16. Qd1 {[%clk 0:02:09.3]} 16... Nc6 {[%clk
0:02:10.1]} 17. Qd2 {[%clk 0:01:52.5]} 17... Ne7 {[%clk 0:02:01.3]} 18. Rfd1
{[%clk 0:01:51.8]} 18... Bc6 {[%clk 0:02:00.4]} 19. Qf4 {[%clk 0:01:46.1]} 19...
Nf5 {[%clk 0:01:38.2]} 20. Rac1 {[%clk 0:01:39.1]} 20... Qb3 {[%clk 0:01:29.8]}
21. Bd3 {[%clk 0:01:23.4]} 21... Bxf3 {[%clk 0:01:20.2]} 22. Qxf3 {[%clk
0:01:20.6]} 22... Rxd4 {[%clk 0:00:39.6]} 23. Bxf5 {[%clk 0:00:55.8]} 23...
Rxd1+ {[%clk 0:00:39.3]} 24. Qxd1 {[%clk 0:00:52.1]} 24... Qxd1+ {[%clk
0:00:38.8]} 25. Rxd1 {[%clk 0:00:53]} 25... exf5 {[%clk 0:00:38.8]} 26. Rb1
{[%clk 0:00:45.1]} 26... Rb8 {[%clk 0:00:37.5]} 27. Rb5 {[%clk 0:00:41.4]} 27...
b6 {[%clk 0:00:37.1]} 28. g3 {[%clk 0:00:39.5]} 28... Kf8 {[%clk 0:00:34.5]} 29.
Kg2 {[%clk 0:00:38.9]} 29... Ke7 {[%clk 0:00:34.9]} 30. f4 {[%clk 0:00:37.8]}
30... g6 {[%clk 0:00:30.1]} 31. a4 {[%clk 0:00:38]} 31... Ke6 {[%clk 0:00:29.4]}
32. Kh3 {[%clk 0:00:35.6]} 32... f6 {[%clk 0:00:29.4]} 33. exf6 {[%clk
0:00:31.7]} 33... Kxf6 {[%clk 0:00:29.2]} 34. Rd5 {[%clk 0:00:32]} 34... Ke6
{[%clk 0:00:29.2]} 35. Re5+ {[%clk 0:00:32.5]} 35... Kd6 {[%clk 0:00:29.2]} 36.
Rb5 {[%clk 0:00:33.1]} 36... Kc6 {[%clk 0:00:29]} 37. Re5 {[%clk 0:00:32.8]}
37... Rb7 {[%clk 0:00:29.3]} 38. Kh4 {[%clk 0:00:28]} 38... b5 {[%clk
0:00:27.4]} 39. axb5+ {[%clk 0:00:23]} 39... Rxb5 {[%clk 0:00:27.3]} 40. Re6+
{[%clk 0:00:23.4]} 40... Kd7 {[%clk 0:00:17.5]} 41. Ra6 {[%clk 0:00:23]} 41...
Kc7 {[%clk 0:00:17.4]} 42. Kg5 {[%clk 0:00:16.9]} 42... Kb7 {[%clk 0:00:17.5]}
43. Re6 {[%clk 0:00:15.7]} 43... a4 {[%clk 0:00:17.6]} 44. Re3 {[%clk
0:00:15.8]} 44... Rb3 {[%clk 0:00:16.9]} 45. Re2 {[%clk 0:00:16]} 45... a3
{[%clk 0:00:17]} 46. Ra2 {[%clk 0:00:16.6]} 46... Kc6 {[%clk 0:00:15.7]} 47. Kh6
{[%clk 0:00:17.1]} 47... Rb2 {[%clk 0:00:15.8]} 48. Rxa3 {[%clk 0:00:15.5]}
48... Rxh2+ {[%clk 0:00:16.3]} 49. Kg7 {[%clk 0:00:14]} 49... Kd5 {[%clk
0:00:16.7]} 50. Kf6 {[%clk 0:00:13.5]} 50... Ke4 {[%clk 0:00:16.9]} 51. Kg5
{[%clk 0:00:12.2]} 51... Rh3 {[%clk 0:00:16.5]} 52. Kf6 {[%clk 0:00:09.7]} 52...
Kd4 {[%clk 0:00:15.8]} 53. Kg5 {[%clk 0:00:09.5]} 53... Kc4 {[%clk 0:00:16.1]}
54. Kf6 {[%clk 0:00:09.3]} 54... Kd4 {[%clk 0:00:16.4]} 55. Kg5 {[%clk
0:00:09.1]} 55... Ke4 {[%clk 0:00:16.1]} 56. Kf6 {[%clk 0:00:09.4]} 56... Rh1
{[%clk 0:00:16.4]} 57. Kg5 {[%clk 0:00:08.8]} 57... Rd1 {[%clk 0:00:15.9]} 58.
Kh6 {[%clk 0:00:08.1]} 58... Rh1+ {[%clk 0:00:14]} 59. Kg5 {[%clk 0:00:08.6]}
59... Rf1 {[%clk 0:00:12.7]} 60. Kh6 {[%clk 0:00:07.5]} 60... Rf3 {[%clk
0:00:12.9]} 61. Ra4+ {[%clk 0:00:07.2]} 61... Ke3 {[%clk 0:00:13.1]} 62. Kxh7
{[%clk 0:00:04.9]} 62... Rxg3 {[%clk 0:00:13.4]} 63. Kh6 {[%clk 0:00:03.8]}
63... Rg4 {[%clk 0:00:12.9]} 64. Kg7 {[%clk 0:00:02.8]} 64... Kf3 {[%clk
0:00:12.5]} 65. Kf6 {[%clk 0:00:02.6]} 65... Rxf4 {[%clk 0:00:11.4]} 66. Ra3+
{[%clk 0:00:02.2]} 66... Kg4 {[%clk 0:00:11.2]} 67. Kxg6 {[%clk 0:00:02.6]}
67... Rd4 {[%clk 0:00:08.9]} 0-1

[Event "*** SCC Grand Prix: Titled Tuesday Blitz"]
[Site "Chess.com"]
[Date "2020.08.04"]
[Round "10"]
[White "Isajevsky_Anton"]
[Black "Slovak_fighter2000"]
[Result "1-0"]
[WhiteElo "2592"]
[BlackElo "2463"]
[TimeControl "180+1"]
[EndTime "15:39:14 PDT"]
[Termination "Isajevsky_Anton won by resignation"]

1. c4 {[%clk 0:03:00.9]} 1... e5 {[%clk 0:02:59.6]} 2. g3 {[%clk 0:03:00.3]}
2... Nf6 {[%clk 0:02:59.3]} 3. Bg2 {[%clk 0:03:00.5]} 3... Nc6 {[%clk
0:02:57.9]} 4. Nc3 {[%clk 0:02:59.7]} 4... Bc5 {[%clk 0:02:57.4]} 5. Nf3 {[%clk
0:02:58]} 5... d6 {[%clk 0:02:56.3]} 6. O-O {[%clk 0:02:57.8]} 6... h6 {[%clk
0:02:46.6]} 7. e3 {[%clk 0:02:56.3]} 7... a6 {[%clk 0:02:44.6]} 8. d4 {[%clk
0:02:55.8]} 8... Bb6 {[%clk 0:02:38.1]} 9. dxe5 {[%clk 0:02:47.4]} 9... Nxe5
{[%clk 0:02:38]} 10. Nd4 {[%clk 0:02:32.6]} 10... O-O {[%clk 0:02:31.7]} 11. b3
{[%clk 0:02:32.2]} 11... Bg4 {[%clk 0:02:24.7]} 12. f3 {[%clk 0:02:26]} 12...
Bd7 {[%clk 0:02:23.3]} 13. Kh1 {[%clk 0:02:23.4]} 13... Qc8 {[%clk 0:02:22.5]}
14. e4 {[%clk 0:02:19.6]} 14... Bh3 {[%clk 0:02:17.7]} 15. Be3 {[%clk 0:02:16]}
15... Bxg2+ {[%clk 0:01:55.2]} 16. Kxg2 {[%clk 0:02:10.5]} 16... Re8 {[%clk
0:01:53.2]} 17. Qd2 {[%clk 0:02:10]} 17... Qd7 {[%clk 0:01:42]} 18. Rad1 {[%clk
0:02:06.5]} 18... Nc6 {[%clk 0:01:35]} 19. Nf5 {[%clk 0:02:03.2]} 19... Bxe3
{[%clk 0:01:33.3]} 20. Nxe3 {[%clk 0:02:04.1]} 20... Rad8 {[%clk 0:01:19.7]} 21.
Rf2 {[%clk 0:01:40.2]} 21... Ne7 {[%clk 0:01:17.5]} 22. Qd4 {[%clk 0:01:30.9]}
22... Nc6 {[%clk 0:01:04.4]} 23. Qd2 {[%clk 0:01:29.4]} 23... Ne7 {[%clk
0:01:01.9]} 24. Qc2 {[%clk 0:01:29.2]} 24... Qc6 {[%clk 0:00:54.2]} 25. Ncd5
{[%clk 0:01:24.3]} 25... Nfxd5 {[%clk 0:00:36.2]} 26. cxd5 {[%clk 0:01:25.2]}
26... Qb6 {[%clk 0:00:32.2]} 27. Rd3 {[%clk 0:01:16.9]} 27... c6 {[%clk
0:00:19.6]} 28. dxc6 {[%clk 0:01:11.8]} 28... bxc6 {[%clk 0:00:20.5]} 29. Rfd2
{[%clk 0:00:56.4]} 29... Qb8 {[%clk 0:00:16]} 30. Qd1 {[%clk 0:00:54.2]} 30...
d5 {[%clk 0:00:12.7]} 31. exd5 {[%clk 0:00:53.8]} 31... cxd5 {[%clk 0:00:13.6]}
32. Nxd5 {[%clk 0:00:52.6]} 32... Nxd5 {[%clk 0:00:09.1]} 33. Rxd5 {[%clk
0:00:53.5]} 33... Rxd5 {[%clk 0:00:09.6]} 34. Rxd5 {[%clk 0:00:54.1]} 34... Qb6
{[%clk 0:00:08.2]} 35. Rd2 {[%clk 0:00:46.5]} 35... Qa5 {[%clk 0:00:08.3]} 36.
Re2 {[%clk 0:00:42.3]} 36... Rd8 {[%clk 0:00:08.5]} 37. Qc2 {[%clk 0:00:41.8]}
37... Qb6 {[%clk 0:00:08.8]} 38. h4 {[%clk 0:00:39.5]} 38... Qd4 {[%clk
0:00:07.7]} 39. h5 {[%clk 0:00:32.1]} 39... Qd6 {[%clk 0:00:08.2]} 40. g4 {[%clk
0:00:32]} 40... Qd7 {[%clk 0:00:07.6]} 41. Qe4 {[%clk 0:00:31.2]} 41... Rc8
{[%clk 0:00:06.3]} 42. Rc2 {[%clk 0:00:29.8]} 42... Rd8 {[%clk 0:00:06.1]} 43.
b4 {[%clk 0:00:27.5]} 43... Qb5 {[%clk 0:00:04.9]} 44. a3 {[%clk 0:00:25.4]}
44... Qd7 {[%clk 0:00:04.9]} 45. Re2 {[%clk 0:00:24.6]} 45... Qd6 {[%clk
0:00:04.7]} 46. Qf5 {[%clk 0:00:20.7]} 46... Qc6 {[%clk 0:00:04.1]} 47. Kf2
{[%clk 0:00:16.9]} 47... Rf8 {[%clk 0:00:04.2]} 48. Qe4 {[%clk 0:00:16.5]} 48...
Qb6+ {[%clk 0:00:04.3]} 49. Qe3 {[%clk 0:00:16.9]} 49... Qb7 {[%clk 0:00:04.1]}
50. Rd2 {[%clk 0:00:17.3]} 50... Qb5 {[%clk 0:00:04.2]} 51. Kg2 {[%clk
0:00:17.4]} 51... Qa4 {[%clk 0:00:04.5]} 52. Qd3 {[%clk 0:00:17.2]} 52... Qb5
{[%clk 0:00:04.9]} 53. Qxb5 {[%clk 0:00:17.1]} 53... axb5 {[%clk 0:00:05.6]} 54.
Rd5 {[%clk 0:00:17.4]} 54... Ra8 {[%clk 0:00:05.5]} 55. Rxb5 {[%clk 0:00:17.5]}
55... Rxa3 {[%clk 0:00:05.3]} 56. Rb8+ {[%clk 0:00:17.6]} 56... Kh7 {[%clk
0:00:05.4]} 57. Rb7 {[%clk 0:00:18.2]} 57... f6 {[%clk 0:00:05.7]} 58. Kg3
{[%clk 0:00:18.2]} 58... Rb3 {[%clk 0:00:06.2]} 59. Kf4 {[%clk 0:00:18.5]} 59...
Kg8 {[%clk 0:00:06.5]} 60. Kf5 {[%clk 0:00:16.6]} 60... Kh7 {[%clk 0:00:06.9]}
61. Ke4 {[%clk 0:00:15.8]} 61... Rb1 {[%clk 0:00:06.4]} 62. b5 {[%clk 0:00:16]}
62... Rb4+ {[%clk 0:00:06.1]} 63. Kd5 {[%clk 0:00:15.7]} 63... Rb3 {[%clk
0:00:04.9]} 64. b6 {[%clk 0:00:16.1]} 64... Rxf3 {[%clk 0:00:02.7]} 65. Rc7
{[%clk 0:00:14.5]} 65... Rb3 {[%clk 0:00:01.9]} 66. Kc6 {[%clk 0:00:13.8]} 66...
Rb1 {[%clk 0:00:02]} 67. b7 {[%clk 0:00:13.6]} 67... Rc1+ {[%clk 0:00:02.1]} 68.
Kd7 {[%clk 0:00:13.3]} 68... Rb1 {[%clk 0:00:02.3]} 69. Kc8 {[%clk 0:00:13.5]}
1-0

[Event "*** SCC Grand Prix: Titled Tuesday Blitz"]
[Site "Chess.com"]
[Date "2020.08.04"]
[Round "10"]
[White "Eternauta2400"]
[Black "praveenb2002"]
[Result "1-0"]
[WhiteElo "2570"]
[BlackElo "2766"]
[TimeControl "180+1"]
[EndTime "15:39:15 PDT"]
[Termination "Eternauta2400 won by resignation"]

1. c4 {[%clk 0:03:00.9]} 1... Nf6 {[%clk 0:02:56.8]} 2. Nc3 {[%clk 0:03:00.7]}
2... g6 {[%clk 0:02:56.9]} 3. e4 {[%clk 0:03:00.8]} 3... d6 {[%clk 0:02:56.6]}
4. d4 {[%clk 0:03:00.8]} 4... Bg7 {[%clk 0:02:56.6]} 5. Nf3 {[%clk 0:03:01.1]}
5... O-O {[%clk 0:02:56.2]} 6. Be2 {[%clk 0:03:01.3]} 6... e5 {[%clk 0:02:54.4]}
7. d5 {[%clk 0:03:01.3]} 7... a5 {[%clk 0:02:52.1]} 8. Bg5 {[%clk 0:03:00.3]}
8... h6 {[%clk 0:02:44.3]} 9. Be3 {[%clk 0:03:00.2]} 9... Ng4 {[%clk 0:02:40.6]}
10. Bd2 {[%clk 0:03:00.3]} 10... f5 {[%clk 0:02:40.5]} 11. exf5 {[%clk
0:02:57.3]} 11... gxf5 {[%clk 0:02:38.6]} 12. h3 {[%clk 0:02:57.6]} 12... Nf6
{[%clk 0:02:33]} 13. Qc1 {[%clk 0:02:56.6]} 13... f4 {[%clk 0:02:31.8]} 14. g3
{[%clk 0:02:53.3]} 14... e4 {[%clk 0:02:31]} 15. Nh4 {[%clk 0:02:52.6]} 15... e3
{[%clk 0:02:30]} 16. fxe3 {[%clk 0:02:52.7]} 16... fxg3 {[%clk 0:02:29.1]} 17.
Ng6 {[%clk 0:02:53.2]} 17... Rf7 {[%clk 0:02:21.4]} 18. Qc2 {[%clk 0:02:50.4]}
18... Na6 {[%clk 0:02:06.8]} 19. O-O-O {[%clk 0:02:48.6]} 19... Nc5 {[%clk
0:01:58.9]} 20. Rhg1 {[%clk 0:02:36.8]} 20... Qe8 {[%clk 0:01:50.3]} 21. Rxg3
{[%clk 0:02:33.4]} 21... Nfe4 {[%clk 0:01:50.2]} 22. Rgg1 {[%clk 0:02:20.7]}
22... Bf5 {[%clk 0:01:43.8]} 23. Nh4 {[%clk 0:01:56.4]} 23... Bh7 {[%clk
0:01:31.6]} 24. Nxe4 {[%clk 0:01:54.1]} 24... Bxe4 {[%clk 0:01:23.1]} 25. Qc3
{[%clk 0:01:54.2]} 25... Kh7 {[%clk 0:01:23.3]} 26. Qa3 {[%clk 0:01:36.3]} 26...
Qe7 {[%clk 0:01:14.7]} 27. Rg4 {[%clk 0:01:29.4]} 27... h5 {[%clk 0:01:09.5]}
28. Rxg7+ {[%clk 0:01:22.3]} 28... Rxg7 {[%clk 0:01:08.2]} 29. Nf3 {[%clk
0:01:22.8]} 29... Rg2 {[%clk 0:01:02.2]} 30. Nd4 {[%clk 0:01:12.3]} 30... Rxe2
{[%clk 0:00:49.7]} 31. Nxe2 {[%clk 0:01:12.8]} 31... Nd3+ {[%clk 0:00:49.8]} 32.
Kb1 {[%clk 0:01:13.2]} 32... Nf2+ {[%clk 0:00:45.4]} 33. Kc1 {[%clk 0:01:13.4]}
33... Nxd1 {[%clk 0:00:45.4]} 34. Kxd1 {[%clk 0:01:13.8]} 34... Rf8 {[%clk
0:00:42.6]} 35. Nf4 {[%clk 0:01:12.3]} 35... Rg8 {[%clk 0:00:38.6]} 36. Qc3
{[%clk 0:01:03.8]} 36... Rg1+ {[%clk 0:00:37.8]} 37. Be1 {[%clk 0:01:04]} 37...
Bf3+ {[%clk 0:00:31.4]} 38. Kd2 {[%clk 0:01:01.2]} 38... Qe5 {[%clk 0:00:26.3]}
39. Qxe5 {[%clk 0:00:25.5]} 39... dxe5 {[%clk 0:00:27.2]} 40. Nd3 {[%clk
0:00:26]} 40... Rg2+ {[%clk 0:00:23.2]} 41. Kc3 {[%clk 0:00:25.6]} 41... e4
{[%clk 0:00:18.9]} 42. Nf4 {[%clk 0:00:24.9]} 42... Rg1 {[%clk 0:00:15.8]} 43.
Bd2 {[%clk 0:00:24.6]} 43... Kh6 {[%clk 0:00:13.5]} 44. c5 {[%clk 0:00:24.6]}
44... Rg8 {[%clk 0:00:11.7]} 45. Kd4 {[%clk 0:00:24.2]} 45... Kg5 {[%clk
0:00:11.2]} 46. Bxa5 {[%clk 0:00:21.7]} 46... Rc8 {[%clk 0:00:04.2]} 47. Bxc7
{[%clk 0:00:20.2]} 47... Rxc7 {[%clk 0:00:04.2]} 48. Ne6+ {[%clk 0:00:20]} 48...
Kh4 {[%clk 0:00:04.3]} 49. Nxc7 {[%clk 0:00:20.5]} 49... Kxh3 {[%clk 0:00:04.8]}
50. Ke5 {[%clk 0:00:19.3]} 50... Kg3 {[%clk 0:00:04.3]} 51. d6 {[%clk
0:00:19.2]} 51... Bg4 {[%clk 0:00:04.1]} 52. Ne6 {[%clk 0:00:19.4]} 52... h4
{[%clk 0:00:04.4]} 53. d7 {[%clk 0:00:19.5]} 53... h3 {[%clk 0:00:04.9]} 54.
d8=Q {[%clk 0:00:19.2]} 54... h2 {[%clk 0:00:05.4]} 55. Qh8 {[%clk 0:00:14.7]}
55... Bf3 {[%clk 0:00:05.6]} 56. Qg7+ {[%clk 0:00:12.9]} 56... Kf2 {[%clk
0:00:04.9]} 57. Qh6 {[%clk 0:00:08.2]} 57... h1=Q {[%clk 0:00:05.2]} 58. Qxh1
{[%clk 0:00:08.5]} 58... Bxh1 {[%clk 0:00:06.1]} 59. Kd4 {[%clk 0:00:08.9]}
59... Ke2 {[%clk 0:00:06.4]} 60. b4 {[%clk 0:00:09.4]} 60... Bf3 {[%clk
0:00:06.2]} 61. b5 {[%clk 0:00:09.8]} 61... Bg4 {[%clk 0:00:05.9]} 62. Nd8
{[%clk 0:00:08.8]} 62... Bd7 {[%clk 0:00:05.3]} 63. c6 {[%clk 0:00:08.6]} 63...
bxc6 {[%clk 0:00:05.5]} 64. bxc6 {[%clk 0:00:08.9]} 64... Bc8 {[%clk 0:00:05.9]}
65. Nb7 {[%clk 0:00:08.7]} 65... Kd2 {[%clk 0:00:05.8]} 66. Nd6 {[%clk
0:00:09.1]} 66... Be6 {[%clk 0:00:06.4]} 67. c7 {[%clk 0:00:09.5]} 67... Kc2
{[%clk 0:00:07]} 68. Nxe4 {[%clk 0:00:09.6]} 68... Kb2 {[%clk 0:00:05.6]} 69.
Nd6 {[%clk 0:00:10]} 69... Kxa2 {[%clk 0:00:05.8]} 70. c8=Q {[%clk 0:00:09.6]}
70... Bxc8 {[%clk 0:00:06.4]} 71. Nxc8 {[%clk 0:00:10.2]} 71... Kb3 {[%clk
0:00:07.1]} 72. Kc5 {[%clk 0:00:10.4]} 72... Kc3 {[%clk 0:00:07.3]} 73. e4
{[%clk 0:00:11]} 73... Kd3 {[%clk 0:00:07.7]} 74. e5 {[%clk 0:00:11.6]} 74...
Ke4 {[%clk 0:00:08.6]} 75. e6 {[%clk 0:00:12.2]} 75... Kf5 {[%clk 0:00:09.5]}
76. e7 {[%clk 0:00:13]} 76... Kf6 {[%clk 0:00:09]} 77. e8=Q {[%clk 0:00:12.7]}
1-0